[Event "*** SCC Grand Prix: Titled Tuesday Blitz"]
[Site "Chess.com"]
[Date "2020.07.14"]
[Round "9"]
[White "Rytenko_V"]
[Black "Nara_Kh"]
[Result "1-0"]
[WhiteElo "2443"]
[BlackElo "2266"]
[TimeControl "180+1"]
[EndTime "11:48:11 PDT"]
[Termination "Rytenko_V won on time"]

1. e4 {[%clk 0:02:07.9]} 1... c5 {[%clk 0:02:59.2]} 2. Nf3 {[%clk 0:02:07.2]}
2... d6 {[%clk 0:02:59.3]} 3. c3 {[%clk 0:02:01.5]} 3... Nf6 {[%clk 0:02:59.1]}
4. Bc4 {[%clk 0:02:00.6]} 4... g6 {[%clk 0:02:47.6]} 5. e5 {[%clk 0:01:58.4]}
5... dxe5 {[%clk 0:02:21.7]} 6. Nxe5 {[%clk 0:01:59.3]} 6... e6 {[%clk 0:02:22]}
7. d4 {[%clk 0:01:58.3]} 7... Bg7 {[%clk 0:02:19.6]} 8. O-O {[%clk 0:01:57.8]}
8... O-O {[%clk 0:02:18.5]} 9. dxc5 {[%clk 0:01:53.8]} 9... Qc7 {[%clk
0:02:15.9]} 10. Qd6 {[%clk 0:01:46.1]} 10... Qxd6 {[%clk 0:01:59.9]} 11. cxd6
{[%clk 0:01:47]} 11... Ne4 {[%clk 0:02:00.5]} 12. Bf4 {[%clk 0:01:45.3]} 12...
Nxd6 {[%clk 0:02:00.7]} 13. Bb3 {[%clk 0:01:42.5]} 13... Nf5 {[%clk 0:01:45]}
14. Nc4 {[%clk 0:01:19.9]} 14... Nc6 {[%clk 0:01:37.9]} 15. Nbd2 {[%clk
0:01:17.2]} 15... b5 {[%clk 0:01:28.7]} 16. Nd6 {[%clk 0:01:14.8]} 16... Nxd6
{[%clk 0:01:28.8]} 17. Bxd6 {[%clk 0:01:15.7]} 17... Rd8 {[%clk 0:01:29.4]} 18.
Bf4 {[%clk 0:01:15.7]} 18... e5 {[%clk 0:01:20.2]} 19. Bg5 {[%clk 0:01:14.5]}
19... Rd3 {[%clk 0:00:56.2]} 20. Ne4 {[%clk 0:01:04.3]} 20... Bf5 {[%clk
0:00:55.5]} 21. Nc5 {[%clk 0:01:01.8]} 21... Rd6 {[%clk 0:00:46.8]} 22. Rad1
{[%clk 0:01:01.9]} 22... Bf8 {[%clk 0:00:41.7]} 23. Nb7 {[%clk 0:00:43.6]} 23...
Rd3 {[%clk 0:00:30.2]} 24. Bd5 {[%clk 0:00:27.3]} 24... Rc8 {[%clk 0:00:23.3]}
25. Rxd3 {[%clk 0:00:27.3]} 25... Bxd3 {[%clk 0:00:22.6]} 26. Rd1 {[%clk
0:00:28.2]} 26... e4 {[%clk 0:00:20.5]} 27. f3 {[%clk 0:00:24.9]} 27... Be2
{[%clk 0:00:12.7]} 28. Rd2 {[%clk 0:00:17.3]} 28... exf3 {[%clk 0:00:13]} 29.
gxf3 {[%clk 0:00:17.7]} 29... Bc4 {[%clk 0:00:13.3]} 30. b3 {[%clk 0:00:10.2]}
30... Bxd5 {[%clk 0:00:12.8]} 31. Rxd5 {[%clk 0:00:11.1]} 31... Kg7 {[%clk
0:00:12.4]} 32. Nd6 {[%clk 0:00:11]} 32... Bxd6 {[%clk 0:00:10.2]} 33. Rxd6
{[%clk 0:00:11.9]} 33... h6 {[%clk 0:00:10.3]} 34. Bf6+ {[%clk 0:00:12.4]} 34...
Kh7 {[%clk 0:00:10.1]} 35. Rd7 {[%clk 0:00:12.8]} 35... Kg8 {[%clk 0:00:10.2]}
36. Kf2 {[%clk 0:00:13.3]} 36... Na5 {[%clk 0:00:09.6]} 37. Ke3 {[%clk 0:00:13]}
37... Nc6 {[%clk 0:00:08.8]} 38. Ke4 {[%clk 0:00:10.7]} 38... g5 {[%clk
0:00:08.6]} 39. Kf5 {[%clk 0:00:07.5]} 39... Re8 {[%clk 0:00:07.1]} 40. c4
{[%clk 0:00:07.1]} 40... bxc4 {[%clk 0:00:06.8]} 41. bxc4 {[%clk 0:00:08]} 41...
Nb4 {[%clk 0:00:06.9]} 42. c5 {[%clk 0:00:07.4]} 42... Rc8 {[%clk 0:00:04.3]}
43. Bd4 {[%clk 0:00:06.1]} 43... Nc2 {[%clk 0:00:04.3]} 44. Bf2 {[%clk
0:00:05.7]} 44... Rc6 {[%clk 0:00:04.6]} 45. Ke4 {[%clk 0:00:05.5]} 45... Kg7
{[%clk 0:00:04.6]} 46. a3 {[%clk 0:00:04.8]} 46... Nxa3 {[%clk 0:00:04.3]} 47.
Kd5 {[%clk 0:00:05.3]} 47... Re6 {[%clk 0:00:03.5]} 48. Bd4+ {[%clk 0:00:05.3]}
48... Kg6 {[%clk 0:00:03]} 49. c6 {[%clk 0:00:06.2]} 49... Nb5 {[%clk
0:00:03.4]} 50. Be5 {[%clk 0:00:04.9]} 50... a5 {[%clk 0:00:02.6]} 51. Rb7
{[%clk 0:00:04.8]} 1-0

[Event "*** SCC Grand Prix: Titled Tuesday Blitz"]
[Site "Chess.com"]
[Date "2020.07.14"]
[Round "9"]
[White "GGfrances"]
[Black "GM_LOADING"]
[Result "0-1"]
[WhiteElo "2398"]
[BlackElo "2585"]
[TimeControl "180+1"]
[EndTime "11:48:12 PDT"]
[Termination "GM_LOADING won by resignation"]

1. e4 {[%clk 0:03:00.9]} 1... e5 {[%clk 0:02:59.7]} 2. Nf3 {[%clk 0:03:00.6]}
2... Nc6 {[%clk 0:03:00.3]} 3. Bc4 {[%clk 0:02:59.2]} 3... Nf6 {[%clk
0:03:00.3]} 4. Ng5 {[%clk 0:02:58.3]} 4... d5 {[%clk 0:03:00]} 5. exd5 {[%clk
0:02:56.6]} 5... Na5 {[%clk 0:03:00.6]} 6. Bb5+ {[%clk 0:02:56.7]} 6... c6
{[%clk 0:03:01.3]} 7. dxc6 {[%clk 0:02:57.6]} 7... bxc6 {[%clk 0:03:02.2]} 8.
Qf3 {[%clk 0:02:56.2]} 8... Be7 {[%clk 0:03:01.6]} 9. Bxc6+ {[%clk 0:02:48.2]}
9... Nxc6 {[%clk 0:03:02.5]} 10. Qxc6+ {[%clk 0:02:48.4]} 10... Bd7 {[%clk
0:03:03.2]} 11. Qf3 {[%clk 0:02:43.5]} 11... O-O {[%clk 0:03:01.5]} 12. Nc3
{[%clk 0:02:39.6]} 12... Rc8 {[%clk 0:03:01.4]} 13. b3 {[%clk 0:02:33.1]} 13...
Bc5 {[%clk 0:02:57.2]} 14. Bb2 {[%clk 0:02:28.1]} 14... Bd4 {[%clk 0:02:57.5]}
15. Nge4 {[%clk 0:02:18]} 15... Nxe4 {[%clk 0:02:50.7]} 16. Qxe4 {[%clk
0:02:18.9]} 16... Bc6 {[%clk 0:02:50.7]} 17. Qg4 {[%clk 0:02:12.1]} 17... f5
{[%clk 0:02:50.1]} 18. Qh5 {[%clk 0:02:02.2]} 18... Qa5 {[%clk 0:01:56]} 19. f3
{[%clk 0:01:45.4]} 19... Rce8 {[%clk 0:01:17.4]} 20. O-O-O {[%clk 0:01:37.4]}
20... Bxc3 {[%clk 0:01:17.4]} 21. Bxc3 {[%clk 0:01:32.3]} 21... Qxa2 {[%clk
0:01:17.8]} 22. Rde1 {[%clk 0:01:21.4]} 22... Rc8 {[%clk 0:00:30.7]} 23. Rxe5
{[%clk 0:01:10.2]} 23... Be8 {[%clk 0:00:30]} 24. Qxe8 {[%clk 0:00:39.4]} 24...
Rfxe8 {[%clk 0:00:30.4]} 25. Ra5 {[%clk 0:00:36.6]} 25... Qxa5 {[%clk
0:00:25.3]} 26. Bxa5 {[%clk 0:00:37.5]} 26... Re2 {[%clk 0:00:23.6]} 27. Rg1
{[%clk 0:00:33.9]} 27... Rce8 {[%clk 0:00:20]} 28. d4 {[%clk 0:00:30.9]} 28...
Rc8 {[%clk 0:00:16.7]} 29. Bd2 {[%clk 0:00:28.3]} 29... Rce8 {[%clk 0:00:13.7]}
30. h4 {[%clk 0:00:27.9]} 30... Rf2 {[%clk 0:00:13.2]} 31. g4 {[%clk 0:00:19.9]}
31... Rxf3 {[%clk 0:00:08.5]} 32. gxf5 {[%clk 0:00:19.5]} 32... Rxf5 {[%clk
0:00:09.4]} 33. Rd1 {[%clk 0:00:19.3]} 33... Kf7 {[%clk 0:00:09]} 34. Kb2 {[%clk
0:00:18.9]} 34... Ke6 {[%clk 0:00:07.6]} 35. c4 {[%clk 0:00:18.7]} 35... Kd7
{[%clk 0:00:07.6]} 36. Kc3 {[%clk 0:00:18.3]} 36... Rf3+ {[%clk 0:00:05.9]} 37.
Kc2 {[%clk 0:00:18.6]} 37... Re2 {[%clk 0:00:05.4]} 38. Rg1 {[%clk 0:00:16.9]}
38... g6 {[%clk 0:00:05.3]} 39. Rd1 {[%clk 0:00:16.7]} 39... h6 {[%clk
0:00:03.4]} 40. d5 {[%clk 0:00:16.7]} 40... g5 {[%clk 0:00:03.2]} 41. hxg5
{[%clk 0:00:17.6]} 41... hxg5 {[%clk 0:00:04.1]} 42. Rg1 {[%clk 0:00:16.9]}
42... Rff2 {[%clk 0:00:04.3]} 43. Rd1 {[%clk 0:00:16.7]} 43... g4 {[%clk
0:00:04.8]} 44. Kd3 {[%clk 0:00:17]} 44... g3 {[%clk 0:00:05.4]} 45. Be3 {[%clk
0:00:15.9]} 45... Rh2 {[%clk 0:00:04.9]} 46. Rg1 {[%clk 0:00:15.5]} 46... Reg2
{[%clk 0:00:05.2]} 47. Rf1 {[%clk 0:00:15.1]} 47... Ra2 {[%clk 0:00:05.1]} 48.
Rg1 {[%clk 0:00:14.6]} 48... g2 {[%clk 0:00:05.5]} 49. Kd4 {[%clk 0:00:14.4]}
49... Rh1 {[%clk 0:00:05.8]} 50. Kc5 {[%clk 0:00:14.3]} 50... Rxg1 {[%clk
0:00:06.2]} 51. Bxg1 {[%clk 0:00:15.2]} 51... Ra1 {[%clk 0:00:06.5]} 52. Bd4
{[%clk 0:00:15.7]} 52... g1=Q {[%clk 0:00:06.8]} 53. Bxg1 {[%clk 0:00:16.2]}
53... Rxg1 {[%clk 0:00:07.4]} 54. b4 {[%clk 0:00:16.7]} 54... Rc1 {[%clk
0:00:06.8]} 55. Kb5 {[%clk 0:00:16.9]} 55... Kd6 {[%clk 0:00:05.4]} 56. c5+
{[%clk 0:00:15.5]} 56... Kxd5 {[%clk 0:00:05.3]} 57. Ka6 {[%clk 0:00:16.4]}
57... Kc6 {[%clk 0:00:05]} 58. Kxa7 {[%clk 0:00:16.6]} 58... Ra1+ {[%clk
0:00:05.2]} 59. Kb8 {[%clk 0:00:16.7]} 59... Ra4 {[%clk 0:00:04.3]} 60. b5+
{[%clk 0:00:16.1]} 60... Kxb5 {[%clk 0:00:04.8]} 61. c6 {[%clk 0:00:16.6]} 61...
Kxc6 {[%clk 0:00:05.1]} 0-1

[Event "*** SCC Grand Prix: Titled Tuesday Blitz"]
[Site "Chess.com"]
[Date "2020.07.14"]
[Round "9"]
[White "Guenplen"]
[Black "chessdjw"]
[Result "0-1"]
[WhiteElo "2863"]
[BlackElo "2677"]
[TimeControl "180+1"]
[EndTime "11:48:14 PDT"]
[Termination "chessdjw won by resignation"]

1. d4 {[%clk 0:03:00.9]} 1... Nf6 {[%clk 0:02:56.8]} 2. Bf4 {[%clk 0:03:01]}
2... d5 {[%clk 0:02:55.8]} 3. e3 {[%clk 0:03:01.1]} 3... c5 {[%clk 0:02:56.4]}
4. c3 {[%clk 0:03:00]} 4... Nc6 {[%clk 0:02:56.6]} 5. Nd2 {[%clk 0:02:59.9]}
5... Bf5 {[%clk 0:02:57.1]} 6. Ngf3 {[%clk 0:02:59.6]} 6... Qb6 {[%clk
0:02:56.5]} 7. dxc5 {[%clk 0:02:58.9]} 7... Qxb2 {[%clk 0:02:55.4]} 8. Nd4
{[%clk 0:02:59.1]} 8... Ne4 {[%clk 0:02:54.5]} 9. Nxf5 {[%clk 0:01:55.6]} 9...
Nxd2 {[%clk 0:02:50.3]} 10. Bd3 {[%clk 0:01:44.4]} 10... Qxc3 {[%clk 0:02:27.8]}
11. Ke2 {[%clk 0:01:43.7]} 11... Ne4 {[%clk 0:02:10.4]} 12. Rc1 {[%clk
0:01:21.3]} 12... Qb2+ {[%clk 0:02:06.7]} 13. Qc2 {[%clk 0:01:18.5]} 13... Qxc2+
{[%clk 0:02:00.9]} 14. Rxc2 {[%clk 0:01:19.4]} 14... e5 {[%clk 0:01:41]} 15.
Bxe4 {[%clk 0:01:03.7]} 15... dxe4 {[%clk 0:01:40.8]} 16. Bg3 {[%clk 0:01:03.6]}
16... O-O-O {[%clk 0:01:40.2]} 17. Rb1 {[%clk 0:00:57.7]} 17... g6 {[%clk
0:01:32.8]} 18. Nd6+ {[%clk 0:00:52.3]} 18... Bxd6 {[%clk 0:01:28.2]} 19. cxd6
{[%clk 0:00:53.2]} 19... Rhe8 {[%clk 0:01:23.8]} 20. Rb4 {[%clk 0:00:41.2]}
20... f5 {[%clk 0:01:09.2]} 21. Rb5 {[%clk 0:00:41.4]} 21... Rxd6 {[%clk
0:00:20.8]} 22. Bxe5 {[%clk 0:00:41]} 22... Rde6 {[%clk 0:00:18.6]} 23. Bf4
{[%clk 0:00:38.8]} 23... b6 {[%clk 0:00:18.8]} 24. Rd5 {[%clk 0:00:33.1]} 24...
Rd8 {[%clk 0:00:18.8]} 25. Rxd8+ {[%clk 0:00:17]} 25... Kxd8 {[%clk 0:00:19.7]}
26. a3 {[%clk 0:00:15.2]} 26... Kc8 {[%clk 0:00:19.8]} 27. h3 {[%clk 0:00:15.6]}
27... Kb7 {[%clk 0:00:20]} 28. Rd2 {[%clk 0:00:15.6]} 28... Re7 {[%clk
0:00:19.8]} 29. g4 {[%clk 0:00:15.7]} 29... fxg4 {[%clk 0:00:19.4]} 30. hxg4
{[%clk 0:00:16.6]} 30... h5 {[%clk 0:00:19.6]} 31. g5 {[%clk 0:00:14.4]} 31...
Re6 {[%clk 0:00:17.2]} 32. Rd7+ {[%clk 0:00:13.4]} 32... Ka6 {[%clk 0:00:17.3]}
33. Rf7 {[%clk 0:00:12.7]} 33... Kb5 {[%clk 0:00:15]} 34. f3 {[%clk 0:00:06.9]}
34... exf3+ {[%clk 0:00:14.3]} 35. Kxf3 {[%clk 0:00:07.8]} 35... Ka4 {[%clk
0:00:10.4]} 36. e4 {[%clk 0:00:07.4]} 36... a5 {[%clk 0:00:09.5]} 37. Rf6 {[%clk
0:00:07.4]} 37... Kxa3 {[%clk 0:00:04.8]} 38. Be3 {[%clk 0:00:04.2]} 38... Ne5+
{[%clk 0:00:04.3]} 39. Kf4 {[%clk 0:00:03.8]} 39... Nd3+ {[%clk 0:00:04.3]} 40.
Kf3 {[%clk 0:00:04]} 40... Ne1+ {[%clk 0:00:04.5]} 41. Ke2 {[%clk 0:00:02.8]}
41... Rxe4 {[%clk 0:00:04]} 42. Rxg6 {[%clk 0:00:02]} 42... Ng2 {[%clk
0:00:02.8]} 43. Kf3 {[%clk 0:00:02.4]} 43... Rxe3+ {[%clk 0:00:03.3]} 44. Kxg2
{[%clk 0:00:03]} 44... Re5 {[%clk 0:00:03.9]} 45. Kg3 {[%clk 0:00:03.2]} 45...
b5 {[%clk 0:00:04.5]} 46. Kh4 {[%clk 0:00:03.7]} 46... b4 {[%clk 0:00:04.2]} 47.
Rb6 {[%clk 0:00:03.4]} 47... b3 {[%clk 0:00:04.3]} 48. g6 {[%clk 0:00:03.8]}
48... Re1 {[%clk 0:00:03.6]} 49. g7 {[%clk 0:00:03.5]} 49... Rg1 {[%clk
0:00:04]} 50. Rb7 {[%clk 0:00:03.1]} 50... b2 {[%clk 0:00:03.6]} 51. Kxh5 {[%clk
0:00:03.6]} 51... Rxg7 {[%clk 0:00:03]} 52. Rxg7 {[%clk 0:00:03]} 52... b1=Q
{[%clk 0:00:02.9]} 53. Rg2 {[%clk 0:00:03.9]} 53... Qf5+ {[%clk 0:00:02.2]} 54.
Kh4 {[%clk 0:00:03.9]} 54... Qe4+ {[%clk 0:00:02.8]} 55. Kg3 {[%clk 0:00:02.3]}
55... Qxg2+ {[%clk 0:00:03.1]} 0-1

[Event "*** SCC Grand Prix: Titled Tuesday Blitz"]
[Site "Chess.com"]
[Date "2020.07.14"]
[Round "9"]
[White "SiddharthGMJagadeesh"]
[Black "attack2mateU"]
[Result "0-1"]
[WhiteElo "2513"]
[BlackElo "2663"]
[TimeControl "180+1"]
[EndTime "11:48:16 PDT"]
[Termination "attack2mateU won by resignation"]

1. Nf3 {[%clk 0:03:00.9]} 1... Nf6 {[%clk 0:02:59.3]} 2. c4 {[%clk 0:03:00.4]}
2... g6 {[%clk 0:02:58.6]} 3. g3 {[%clk 0:02:59.9]} 3... Bg7 {[%clk 0:02:58.3]}
4. Bg2 {[%clk 0:03:00.2]} 4... O-O {[%clk 0:02:58.4]} 5. O-O {[%clk 0:03:00.6]}
5... c5 {[%clk 0:02:53.5]} 6. d4 {[%clk 0:02:58.8]} 6... cxd4 {[%clk 0:02:52.8]}
7. Nxd4 {[%clk 0:02:59.7]} 7... Nc6 {[%clk 0:02:52.6]} 8. Nc2 {[%clk 0:02:58.2]}
8... d6 {[%clk 0:02:49.2]} 9. Nc3 {[%clk 0:02:58.1]} 9... Bd7 {[%clk 0:02:44.7]}
10. b3 {[%clk 0:02:57.1]} 10... Qa5 {[%clk 0:02:26.4]} 11. Bb2 {[%clk
0:02:52.8]} 11... Rfc8 {[%clk 0:02:26.9]} 12. Ne3 {[%clk 0:02:44.3]} 12... a6
{[%clk 0:02:18.6]} 13. a3 {[%clk 0:02:28.2]} 13... Qh5 {[%clk 0:02:15.6]} 14.
Rb1 {[%clk 0:02:03.8]} 14... Rab8 {[%clk 0:01:54.1]} 15. Ncd5 {[%clk 0:02:01.9]}
15... Nxd5 {[%clk 0:01:51.2]} 16. Nxd5 {[%clk 0:02:00.3]} 16... Bxb2 {[%clk
0:01:49]} 17. Rxb2 {[%clk 0:01:59.1]} 17... b5 {[%clk 0:01:43.7]} 18. c5 {[%clk
0:01:47.7]} 18... dxc5 {[%clk 0:01:33.3]} 19. Nf4 {[%clk 0:01:33.2]} 19... Qe5
{[%clk 0:01:33.5]} 20. Qxd7 {[%clk 0:01:31]} 20... Qxb2 {[%clk 0:01:30.2]} 21.
Bxc6 {[%clk 0:01:29.1]} 21... e6 {[%clk 0:01:19.1]} 22. Nd3 {[%clk 0:00:29.1]}
22... Qxa3 {[%clk 0:01:08.7]} 23. Ne5 {[%clk 0:00:28.9]} 23... Rf8 {[%clk
0:01:08.8]} 24. Qe7 {[%clk 0:00:22]} 24... Qxb3 {[%clk 0:00:42.4]} 25. Nd7
{[%clk 0:00:21.6]} 25... Qb2 {[%clk 0:00:23.6]} 26. Nxf8 {[%clk 0:00:15.3]}
26... Rxf8 {[%clk 0:00:24.5]} 27. Qxc5 {[%clk 0:00:15.7]} 27... Qxe2 {[%clk
0:00:22.1]} 28. Qb6 {[%clk 0:00:15.6]} 28... Qa2 {[%clk 0:00:18.1]} 29. Rd1
{[%clk 0:00:15.1]} 29... Qa4 {[%clk 0:00:16.5]} 30. Rd8 {[%clk 0:00:13.6]} 30...
Rxd8 {[%clk 0:00:15.8]} 31. Qxd8+ {[%clk 0:00:14.5]} 31... Kg7 {[%clk
0:00:16.2]} 32. Qd2 {[%clk 0:00:12.4]} 32... Qc4 {[%clk 0:00:15.3]} 33. Bf3
{[%clk 0:00:11.9]} 33... b4 {[%clk 0:00:15.1]} 34. Be2 {[%clk 0:00:11.7]} 34...
Qc3 {[%clk 0:00:14.3]} 35. Qxc3+ {[%clk 0:00:09.6]} 35... bxc3 {[%clk
0:00:15.2]} 36. Bd3 {[%clk 0:00:10.5]} 36... Kf6 {[%clk 0:00:14.7]} 37. Kf1
{[%clk 0:00:09.9]} 37... Ke5 {[%clk 0:00:15.3]} 38. Ke2 {[%clk 0:00:09.8]} 38...
a5 {[%clk 0:00:15.4]} 39. Bc2 {[%clk 0:00:09]} 39... Kd4 {[%clk 0:00:15.3]} 40.
Bb3 {[%clk 0:00:09.2]} 40... g5 {[%clk 0:00:09.1]} 41. f3 {[%clk 0:00:08.6]}
41... h6 {[%clk 0:00:08.8]} 42. h4 {[%clk 0:00:07.7]} 42... gxh4 {[%clk
0:00:07.3]} 43. gxh4 {[%clk 0:00:08.6]} 43... Kc5 {[%clk 0:00:05.8]} 44. Kd3
{[%clk 0:00:08.1]} 44... Kb4 {[%clk 0:00:06.4]} 45. Bc2 {[%clk 0:00:07.8]} 45...
a4 {[%clk 0:00:06.9]} 46. Bxa4 {[%clk 0:00:06.9]} 46... Kxa4 {[%clk 0:00:07.1]}
47. Kxc3 {[%clk 0:00:07.3]} 47... Kb5 {[%clk 0:00:04.5]} 48. Kd4 {[%clk
0:00:07.6]} 48... f6 {[%clk 0:00:05.2]} 49. Ke4 {[%clk 0:00:05.7]} 49... Kc5
{[%clk 0:00:05.2]} 50. Kf4 {[%clk 0:00:06]} 50... Kd4 {[%clk 0:00:05.3]} 51. Kg4
{[%clk 0:00:06.2]} 51... Ke3 {[%clk 0:00:03.1]} 52. Kh5 {[%clk 0:00:04.9]} 52...
Kxf3 {[%clk 0:00:03.6]} 53. Kxh6 {[%clk 0:00:05.1]} 53... e5 {[%clk 0:00:04.1]}
54. h5 {[%clk 0:00:04.5]} 54... e4 {[%clk 0:00:04.5]} 55. Kg6 {[%clk 0:00:05]}
55... e3 {[%clk 0:00:05]} 56. h6 {[%clk 0:00:05.5]} 56... e2 {[%clk 0:00:05.7]}
57. h7 {[%clk 0:00:06]} 57... e1=Q {[%clk 0:00:06]} 58. h8=Q {[%clk 0:00:06.9]}
58... Qe4+ {[%clk 0:00:06.1]} 59. Kf7 {[%clk 0:00:06.5]} 59... f5 {[%clk
0:00:06.2]} 60. Qh3+ {[%clk 0:00:06.1]} 60... Ke2 {[%clk 0:00:06.4]} 61. Qh2+
{[%clk 0:00:06.1]} 61... Ke3 {[%clk 0:00:06.9]} 62. Qg3+ {[%clk 0:00:06.3]}
62... Kd4 {[%clk 0:00:07]} 63. Qd6+ {[%clk 0:00:06.4]} 63... Qd5+ {[%clk
0:00:07.1]} 0-1

[Event "*** SCC Grand Prix: Titled Tuesday Blitz"]
[Site "Chess.com"]
[Date "2020.07.14"]
[Round "9"]
[White "MustafayevFarid2004"]
[Black "bratkoo"]
[Result "1-0"]
[WhiteElo "2391"]
[BlackElo "2471"]
[TimeControl "180+1"]
[EndTime "11:48:16 PDT"]
[Termination "MustafayevFarid2004 won by checkmate"]

1. d4 {[%clk 0:03:00.9]} 1... e6 {[%clk 0:02:56.8]} 2. c4 {[%clk 0:02:59.6]}
2... d5 {[%clk 0:02:57.1]} 3. cxd5 {[%clk 0:02:58.3]} 3... exd5 {[%clk
0:02:57.5]} 4. Nc3 {[%clk 0:02:58.9]} 4... c6 {[%clk 0:02:58.1]} 5. Nf3 {[%clk
0:02:55]} 5... Bd6 {[%clk 0:02:58.2]} 6. Bg5 {[%clk 0:02:54]} 6... Ne7 {[%clk
0:02:58]} 7. e3 {[%clk 0:02:54.2]} 7... h6 {[%clk 0:02:58.4]} 8. Bh4 {[%clk
0:02:54]} 8... Qb6 {[%clk 0:02:53.6]} 9. Qd2 {[%clk 0:02:23.4]} 9... Nf5 {[%clk
0:02:52.2]} 10. Bg3 {[%clk 0:02:23.3]} 10... Nxg3 {[%clk 0:02:52.1]} 11. hxg3
{[%clk 0:02:24.2]} 11... Bf5 {[%clk 0:02:52.1]} 12. Bd3 {[%clk 0:02:24.5]} 12...
Bxd3 {[%clk 0:02:51.4]} 13. Qxd3 {[%clk 0:02:25.4]} 13... Qxb2 {[%clk
0:02:43.6]} 14. Rb1 {[%clk 0:02:24.2]} 14... Qa3 {[%clk 0:02:43.6]} 15. O-O
{[%clk 0:01:55]} 15... b6 {[%clk 0:02:36.9]} 16. e4 {[%clk 0:01:49.4]} 16... O-O
{[%clk 0:02:36.2]} 17. Rb3 {[%clk 0:01:45.2]} 17... Qa5 {[%clk 0:02:14.4]} 18.
exd5 {[%clk 0:01:44.5]} 18... cxd5 {[%clk 0:02:14.7]} 19. Nb5 {[%clk 0:01:37.2]}
19... Rd8 {[%clk 0:02:07]} 20. Rc1 {[%clk 0:01:36.6]} 20... Na6 {[%clk
0:02:04.3]} 21. Nxd6 {[%clk 0:01:34.8]} 21... Rxd6 {[%clk 0:02:03.8]} 22. Ra3
{[%clk 0:01:32.3]} 22... Nb4 {[%clk 0:02:03.2]} 23. Qc3 {[%clk 0:01:17.4]} 23...
Qb5 {[%clk 0:01:46.4]} 24. Ne5 {[%clk 0:00:59.4]} 24... a5 {[%clk 0:01:32.5]}
25. Qc7 {[%clk 0:00:57.5]} 25... Rf6 {[%clk 0:01:32.3]} 26. Rf3 {[%clk 0:00:58]}
26... Rxf3 {[%clk 0:01:26.9]} 27. gxf3 {[%clk 0:00:58.9]} 27... Qe8 {[%clk
0:01:11.8]} 28. Qxb6 {[%clk 0:00:54.8]} 28... Nxa2 {[%clk 0:01:11.8]} 29. Ra1
{[%clk 0:00:55.2]} 29... Nc3 {[%clk 0:01:08.5]} 30. Rxa5 {[%clk 0:00:51.5]}
30... Rxa5 {[%clk 0:01:08]} 31. Qxa5 {[%clk 0:00:52.4]} 31... Ne2+ {[%clk
0:01:08]} 32. Kg2 {[%clk 0:00:49.3]} 32... Nxd4 {[%clk 0:01:01.3]} 33. Qxd5
{[%clk 0:00:49.8]} 33... Ne6 {[%clk 0:01:00]} 34. Nd3 {[%clk 0:00:47]} 34... Qd8
{[%clk 0:00:59]} 35. Qe4 {[%clk 0:00:44.2]} 35... g6 {[%clk 0:00:56.7]} 36. f4
{[%clk 0:00:44.3]} 36... h5 {[%clk 0:00:50.2]} 37. Ne5 {[%clk 0:00:44.1]} 37...
Qd4 {[%clk 0:00:46.1]} 38. Qa8+ {[%clk 0:00:39.4]} 38... Qd8 {[%clk 0:00:44.1]}
39. Qb7 {[%clk 0:00:37.7]} 39... Qc7 {[%clk 0:00:44]} 40. Qe4 {[%clk 0:00:37]}
40... Kg7 {[%clk 0:00:42.1]} 41. Nxg6 {[%clk 0:00:33.7]} 41... fxg6 {[%clk
0:00:38.6]} 42. Qxe6 {[%clk 0:00:33.8]} 42... Kh7 {[%clk 0:00:37.7]} 43. f5
{[%clk 0:00:31.2]} 43... Qb7+ {[%clk 0:00:37.3]} 44. Kh2 {[%clk 0:00:31.1]}
44... gxf5 {[%clk 0:00:32.7]} 45. Qxf5+ {[%clk 0:00:32]} 45... Kh6 {[%clk
0:00:30.8]} 46. f4 {[%clk 0:00:30.7]} 46... Qf3 {[%clk 0:00:30.2]} 47. Qg5+
{[%clk 0:00:25.2]} 47... Kh7 {[%clk 0:00:30.3]} 48. Qe7+ {[%clk 0:00:25.4]}
48... Kh6 {[%clk 0:00:30.4]} 49. Qd6+ {[%clk 0:00:25.6]} 49... Kh7 {[%clk
0:00:30.2]} 50. Qc7+ {[%clk 0:00:25.3]} 50... Kg6 {[%clk 0:00:29.8]} 51. Qb6+
{[%clk 0:00:23.9]} 51... Kg7 {[%clk 0:00:20.4]} 52. Qb2+ {[%clk 0:00:23.5]}
52... Kg6 {[%clk 0:00:19.9]} 53. Qg2 {[%clk 0:00:23.9]} 53... Qc3 {[%clk
0:00:14.8]} 54. Qe4+ {[%clk 0:00:23.2]} 54... Kf6 {[%clk 0:00:15.2]} 55. Kh3
{[%clk 0:00:22.6]} 55... Qa1 {[%clk 0:00:12.8]} 56. Qe5+ {[%clk 0:00:21.1]}
56... Qxe5 {[%clk 0:00:11.7]} 57. fxe5+ {[%clk 0:00:22]} 57... Kxe5 {[%clk
0:00:12.3]} 58. Kh4 {[%clk 0:00:22.9]} 58... Kf6 {[%clk 0:00:10.3]} 59. Kxh5
{[%clk 0:00:23.2]} 59... Kf7 {[%clk 0:00:11]} 60. g4 {[%clk 0:00:22.3]} 60...
Kf8 {[%clk 0:00:10]} 61. Kh6 {[%clk 0:00:20.5]} 61... Kf7 {[%clk 0:00:10.6]} 62.
g5 {[%clk 0:00:20.8]} 62... Kf8 {[%clk 0:00:10.6]} 63. g6 {[%clk 0:00:20.2]}
63... Kg8 {[%clk 0:00:11]} 64. g7 {[%clk 0:00:20.7]} 64... Kf7 {[%clk
0:00:11.5]} 65. Kh7 {[%clk 0:00:21.6]} 65... Ke6 {[%clk 0:00:12.1]} 66. g8=Q+
{[%clk 0:00:22.5]} 66... Ke5 {[%clk 0:00:13]} 67. Kg6 {[%clk 0:00:22.9]} 67...
Ke4 {[%clk 0:00:13.9]} 68. Qe8+ {[%clk 0:00:23.4]} 68... Kf4 {[%clk 0:00:14.8]}
69. Kf6 {[%clk 0:00:23.3]} 69... Kg4 {[%clk 0:00:15.7]} 70. Qe3 {[%clk
0:00:22.3]} 70... Kh5 {[%clk 0:00:14.6]} 71. Qg5# {[%clk 0:00:21.5]} 1-0